bitfinex/quotes_BTCUSD_20241107
["timestamp","ask_amount","ask_price","bid_price","bid_amount"]
[1730984327926,0.001666,74996.0,74995.0,0.03190631]
[1730984329440,0.024666,74996.0,74995.0,0.03190631]
[1730984330280,0.024666,74996.0,74995.0,0.03690631]
[1730984331056,0.024666,74996.0,74995.0,0.017]
[1730984331293,0.024666,74996.0,74995.0,0.0369119]
[1730984332410,0.024666,74996.0,74995.0,0.1152119]
[1730984333016,0.001666,74996.0,74995.0,0.11787856]
[1730984333653,0.001666,74996.0,74995.0,0.1152119]
[1730984334667,0.001666,74996.0,74995.0,0.0953]
[1730984334870,0.001666,74996.0,74995.0,0.11521336]
[1730984338235,0.001666,74996.0,74995.0,0.11521576]
[1730984339666,0.001666,74996.0,74995.0,0.11288229]
[1730984339877,0.001666,74996.0,74995.0,0.24703973]
[1730984340085,0.001666,74996.0,74995.0,0.2443732]
[1730984340913,0.001666,74996.0,74995.0,0.12021576]
[1730984341755,0.001666,74996.0,74995.0,0.11521576]
[1730984344143,0.001666,74996.0,74995.0,0.11520714]
[1730984344758,0.001666,74996.0,74995.0,0.1228736]
[1730984346551,0.001666,74996.0,74995.0,0.12020714]
[1730984346940,0.001666,74996.0,74995.0,0.14952346]
[1730984347147,0.001666,74996.0,74995.0,0.19932346]
[1730984347638,0.001666,74996.0,74995.0,0.31899102]
[1730984347842,0.001666,74996.0,74995.0,0.3388863]
[1730984349514,0.001666,74996.0,74995.0,0.46291747]
[1730984351254,0.001666,74996.0,74995.0,0.33067645]
[1730984352201,0.001666,74996.0,74995.0,0.30402645]
[1730984352836,0.001666,74996.0,74995.0,0.17999528]
[1730984354375,0.001666,74996.0,74995.0,0.1601]
[1730984354585,0.001666,74996.0,74995.0,0.17999695]
[1730984354899,0.001666,74996.0,74995.0,0.16499695]
[1730984355102,0.001666,74996.0,74995.0,0.02689695]
[1730984355315,0.001666,74996.0,74995.0,0.03689695]
[1730984357682,0.001666,74996.0,74995.0,0.03693278]
[1730984359947,0.001666,74996.0,74995.0,0.03493278]
[1730984360529,0.001666,74996.0,74995.0,0.03693278]
[1730984361142,0.001666,74996.0,74995.0,0.017]
[1730984361370,0.001666,74996.0,74995.0,0.03693713]
[1730984364567,0.001666,74996.0,74995.0,0.12313784]
[1730984367204,0.001666,74996.0,74995.0,0.11813784]
[1730984367415,0.001666,74996.0,74995.0,0.12313784]
[1730984367635,0.001666,74996.0,74995.0,0.11813784]
[1730984367845,0.001666,74996.0,74995.0,0.12313784]
[1730984368728,0.001666,74996.0,74995.0,0.11813784]
[1730984371352,0.001666,74996.0,74995.0,0.13060147]
[1730984372199,0.001666,74996.0,74995.0,0.04940147]
[1730984375337,0.001666,74996.0,74995.0,0.017]
[1730984375583,0.001666,74996.0,74995.0,0.04940016]
[1730984386040,0.001666,74996.0,74995.0,0.04944255]
[1730984386248,0.001666,74996.0,74995.0,0.017]
[1730984386460,0.001666,74996.0,74995.0,0.04944255]
[1730984387833,0.001666,74996.0,74995.0,0.017]
[1730984388008,0.001666,74996.0,74995.0,0.04944379]
[1730984390051,0.001666,74996.0,74995.0,0.017]
[1730984390261,0.001666,74996.0,74995.0,0.04944346]
[1730984392072,0.001666,74996.0,74995.0,0.13248792]
[1730984392270,0.001666,74996.0,74995.0,0.13515434]
[1730984392883,0.001666,74996.0,74995.0,0.13248792]
[1730984393455,0.001666,74996.0,74995.0,0.15744566]
[1730984393679,0.001666,74996.0,74995.0,0.0744012]
[1730984394508,0.001666,74996.0,74995.0,0.04944346]
[1730984396191,0.001666,74996.0,74995.0,0.17854346]
[1730984396403,0.001666,74996.0,74995.0,0.18620989]
[1730984397128,0.001666,74996.0,74995.0,0.18354346]
[1730984398732,0.001666,74996.0,74995.0,0.20850909]
[1730984399726,0.001666,74996.0,74995.0,0.18354346]
[1730984400409,0.20198651,75008.0,75007.0,0.007]
[1730984400731,0.20198651,75008.0,75007.0,0.39062894]
[1730984400854,0.20198651,75008.0,75007.0,0.43727894]
[1730984400855,0.001666,75008.0,75007.0,0.43727894]
[1730984401062,0.001666,75012.0,75011.0,0.024]
[1730984401268,0.001666,75012.0,75011.0,0.5222234]
[1730984401473,0.001666,75012.0,75011.0,0.43717894]
[1730984402132,0.001666,75012.0,75011.0,0.36828792]
[1730984402337,0.001666,75012.0,75011.0,0.18524346]
[1730984402624,0.001666,75012.0,75011.0,0.13724346]
[1730984402833,0.001666,75012.0,75011.0,0.13224346]
[1730984403049,0.001666,75012.0,75011.0,0.13215979]
[1730984403668,0.001666,75012.0,75011.0,0.15556921]
[1730984403886,0.001666,75012.0,75011.0,0.10746596]
[1730984404105,0.001666,75012.0,75011.0,0.43065546]
[1730984404333,0.001666,75012.0,75011.0,0.4299895]
[1730984404972,0.001666,75012.0,75011.0,0.4279895]
[1730984405814,0.001666,75012.0,75011.0,0.4299895]
[1730984407578,0.001666,75012.0,75011.0,0.4279895]
[1730984407802,0.001666,75012.0,75011.0,0.29074848]
[1730984408004,0.001666,75012.0,75011.0,0.2634]
[1730984408212,0.001666,75012.0,75011.0,0.29569198]
[1730984408576,0.001666,75012.0,75011.0,0.13209198]
[1730984408999,0.001666,75012.0,75011.0,0.04429198]
[1730984409205,0.001666,75012.0,75011.0,0.03929198]
[1730984410005,0.001666,75012.0,75011.0,0.02941999]
[1730984410216,0.001666,75012.0,75011.0,0.017]
[1730984410412,0.001666,75012.0,75011.0,0.02942455]
[1730984411003,0.001666,75012.0,75011.0,0.02442455]
[1730984411488,0.024666,75012.0,75011.0,0.02442455]
[1730984411857,0.100666,75012.0,75011.0,0.01942455]
[1730984412293,0.077666,75012.0,75011.0,0.01742455]
[1730984413484,0.077666,75012.0,75011.0,0.01942455]
[1730984413935,0.077666,75012.0,75011.0,0.02942455]
[1730984414383,0.100666,75012.0,75011.0,0.01242455]
[1730984415045,0.100666,75012.0,75011.0,0.0124323]
[1730984415517,0.23290702,75012.0,75011.0,0.0174323]
[1730984416008,0.23290702,75012.0,75011.0,0.01943275]
[1730984417578,0.23290702,75012.0,75011.0,0.01443275]
[1730984417813,0.23290702,75012.0,75011.0,0.007]
[1730984418036,0.23290702,75012.0,75011.0,0.01943373]
[1730984418275,0.23290702,75012.0,75011.0,0.007]
[1730984418484,0.23290702,75012.0,75011.0,0.0194347]
[1730984418744,0.15690702,75012.0,75011.0,0.0174347]
[1730984418959,0.15690702,75012.0,75011.0,0.0194347]
[1730984419193,0.15690702,75012.0,74995.0,0.00266637]
[1730984419194,0.001666,75012.0,75006.0,0.0473067]
[1730984419404,0.001666,75012.0,75011.0,0.0003067]
[1730984419612,0.001666,75012.0,75011.0,0.0029726]
[1730984422848,0.001666,75012.0,75011.0,0.0003067]
[1730984426435,0.001666,75012.0,75011.0,0.0053067]
[1730984431148,0.001666,75012.0,75011.0,0.01774563]
[1730984431355,0.001666,75012.0,75011.0,0.15834614]
[1730984431567,0.001666,75012.0,75011.0,0.15634614]
[1730984431791,0.001666,75012.0,75011.0,0.01243944]
[1730984431996,0.001666,75012.0,75011.0,0.01275038]
[1730984435229,0.001666,75012.0,75011.0,0.01775038]
[1730984435431,0.001666,75012.0,75011.0,0.09325038]
[1730984436196,0.001666,75012.0,75011.0,0.08825038]
[1730984436966,0.001666,75012.0,75011.0,0.09325038]
[1730984437732,0.001666,75012.0,75011.0,0.08825038]
[1730984437945,0.001666,75012.0,75011.0,0.0758067]
[1730984438359,0.001666,75012.0,75011.0,0.08825695]
[1730984438574,0.001666,75012.0,75011.0,0.0758067]
[1730984438783,0.001666,75012.0,75011.0,0.09325826]
[1730984442026,0.001666,75012.0,75011.0,0.08825826]
[1730984442244,0.001666,75012.0,75011.0,0.09325826]
[1730984442674,0.001666,75012.0,75011.0,0.08825826]
[1730984445185,0.001666,75012.0,75011.0,0.01275826]
[1730984446895,0.024666,75012.0,75011.0,0.01275826]
[1730984447388,0.15690702,75012.0,75011.0,0.01245156]
[1730984449354,0.024666,75012.0,75011.0,0.01245156]
[1730984449573,0.001666,75012.0,75011.0,0.01245156]
[1730984454505,0.13390702,75012.0,75011.0,0.01245156]
[1730984455820,0.15690702,75012.0,75011.0,0.01245156]
[1730984456723,0.0475,75011.0,75008.0,0.000832]
[1730984456950,0.023,75009.0,75008.0,0.000832]
[1730984457151,0.15524102,75009.0,75008.0,0.000832]
[1730984464424,0.15690502,75009.0,75008.0,0.000832]
[1730984466356,0.21214977,75009.0,75008.0,0.000832]
[1730984469342,0.15690502,75009.0,75008.0,0.000832]
[1730984469606,0.001664,75009.0,75008.0,0.000832]
[1730984469751,0.001664,75009.0,75008.0,0.0011387]
[1730984470330,0.001664,75009.0,75008.0,0.02104173]
[1730984470528,0.001664,75009.0,75008.0,0.10414173]
[1730984470809,0.001664,75009.0,75008.0,0.15274173]
[1730984472924,0.001664,75009.0,75008.0,0.15974173]
[1730984473558,0.001664,75009.0,75008.0,0.1398387]
[1730984473793,0.001664,75009.0,75008.0,0.15773979]
[1730984474249,0.001664,75009.0,75008.0,0.16040557]
[1730984474458,0.001664,75009.0,75008.0,0.16240557]
[1730984474813,0.001664,75009.0,75008.0,0.16040557]
[1730984475030,0.001664,75009.0,75008.0,0.15773979]
[1730984477762,0.001664,75009.0,75008.0,0.15273979]
[1730984478005,0.001664,75009.0,75008.0,0.02103979]
[1730984478242,0.001664,75009.0,75008.0,0.0011387]
[1730984478694,0.001664,75009.0,75008.0,0.02103979]
[1730984479695,0.001664,75009.0,75008.0,0.09793979]
[1730984480834,0.001664,75009.0,75008.0,0.09793171]
[1730984488394,0.001664,75009.0,75008.0,0.09792849]
[1730984489012,0.001664,75009.0,75008.0,0.02102849]
[1730984490340,0.001664,75009.0,75008.0,0.0011387]
[1730984491279,0.15690502,75009.0,75008.0,0.000832]
[1730984491473,0.001664,75009.0,75008.0,0.000832]
[1730984495700,0.15690502,75009.0,75008.0,0.000832]
[1730984501086,0.001664,75009.0,75008.0,0.000832]
[1730984504394,0.001664,75009.0,75008.0,0.0011387]
[1730984506879,0.001664,75009.0,75008.0,0.000832]
[1730984513963,0.15690502,75009.0,75008.0,0.000832]
[1730984515091,0.001664,75009.0,75008.0,0.000832]
[1730984515268,0.001664,75009.0,75008.0,0.084032]
[1730984515481,0.001664,75009.0,75008.0,0.0843387]
[1730984521580,0.001664,75009.0,75008.0,0.09681708]
[1730984523227,0.001664,75009.0,75008.0,0.0843387]
[1730984523424,0.001664,75009.0,75008.0,0.09681095]
[1730984524279,0.001664,75009.0,75008.0,0.01361095]
[1730984524905,0.15690502,75009.0,75008.0,0.01330425]
[1730984529050,0.15690502,75009.0,75008.0,0.01330711]
[1730984533330,0.13390502,75009.0,75008.0,0.01330711]
[1730984536912,0.15690502,75009.0,75008.0,0.01330711]
[1730984537112,0.25690502,75009.0,75008.0,0.01330711]
[1730984537315,0.26159832,75009.0,75008.0,0.01330711]
[1730984537892,0.28407838,75009.0,75008.0,0.01330711]
[1730984538100,0.46678401,75009.0,75008.0,0.01330711]
[1730984538337,0.55430535,75009.0,75008.0,0.01330711]
[1730984538701,0.40687838,75009.0,75008.0,0.01330711]
[1730984539237,0.55428819,75009.0,75008.0,0.01330711]
[1730984540287,0.62931516,75009.0,75008.0,0.000832]
[1730984540517,0.68920087,75009.0,75008.0,0.000832]
[1730984541534,0.68914096,75009.0,75008.0,0.000832]
[1730984542035,0.69114096,75009.0,75008.0,0.000832]
[1730984542232,0.78296932,75009.0,75008.0,0.000832]
[1730984542449,0.70113015,75009.0,75008.0,0.000832]
[1730984542596,0.60930179,75009.0,75008.0,0.000832]
[1730984543226,0.46194239,75009.0,75008.0,0.000832]
[1730984543426,0.52181376,75009.0,75008.0,0.000832]
[1730984543600,0.46194239,75009.0,75008.0,0.000832]
[1730984544400,0.46193102,75009.0,75008.0,0.000832]
[1730984544656,0.44946233,75009.0,75008.0,0.000832]
[1730984544897,0.46193075,75009.0,75008.0,0.000832]
[1730984545789,0.52179143,75009.0,75008.0,0.000832]
[1730984545995,0.46193075,75009.0,75008.0,0.000832]
[1730984546378,0.46293075,75009.0,75008.0,0.000832]
[1730984546544,0.50283508,75009.0,75008.0,0.000832]
[1730984546759,0.50183508,75009.0,75008.0,0.000832]
[1730984546965,0.37903508,75009.0,75008.0,0.000832]
[1730984547394,0.38003508,75009.0,75008.0,0.000832]
[1730984548162,0.38203508,75009.0,75008.0,0.000832]
[1730984548390,0.38203379,75009.0,75008.0,0.000832]
[1730984549594,0.70778137,75009.0,75008.0,0.000832]
[1730984549791,0.69847407,75009.0,75008.0,0.000832]
[1730984550017,0.91530875,75009.0,75008.0,0.000832]
[1730984550218,2.24043236,75009.0,75008.0,0.000832]
[1730984551284,2.24040638,75009.0,75008.0,0.000832]
[1730984551508,2.27473257,75009.0,75008.0,0.000832]
[1730984551661,2.26226544,75009.0,75008.0,0.000832]
[1730984551898,2.42809311,75009.0,75008.0,0.000832]
[1730984552067,0.023,74989.0,74987.0,0.20032051]
[1730984552274,0.16024102,74988.0,74987.0,0.20032051]
[1730984552488,0.023,74987.0,74978.0,0.0822]
[1730984552664,0.15524102,74986.0,74981.0,0.0003067]
[1730984553066,0.15524102,74986.0,74979.0,0.0003067]
[1730984553312,0.15524102,74986.0,74978.0,0.0822]
[1730984553803,0.15524102,74986.0,74981.0,0.0003067]
[1730984554210,0.15524102,74986.0,74979.0,0.0003067]
[1730984554551,0.15524102,74986.0,74981.0,0.0003067]
[1730984557919,0.1968282,74986.0,74981.0,0.0003067]
[1730984558276,0.15524102,74986.0,74981.0,0.0003067]
[1730984559082,0.15524102,74986.0,74978.0,0.0822]
[1730984559316,0.15524102,74986.0,74981.0,0.0003067]
[1730984566267,0.15524102,74986.0,74985.0,0.127032]
[1730984566532,0.1,74998.0,74985.0,0.127032]
[1730984566760,0.1,74998.0,74986.0,0.0768]
[1730984566761,0.20032051,74991.0,74986.0,0.0768]
[1730984566990,0.13224102,74997.0,74986.0,0.0768]
[1730984567443,0.13224102,74997.0,74988.0,0.0793]
[1730984567948,0.023,74996.0,74988.0,0.0793]
[1730984568167,0.13224102,74995.0,74988.0,0.0793]
[1730984572372,0.123,75005.0,74988.0,0.0793]
[1730984572594,0.20032051,74998.0,74990.0,0.0788]
[1730984572825,0.13224102,74998.0,74991.0,0.0003067]
[1730984573049,0.123,75005.0,74991.0,0.02522585]
[1730984573282,0.023,75003.0,74992.0,0.10431915]
[1730984573504,0.13224102,75002.0,74992.0,0.10431915]
[1730984573730,0.023,75001.0,74992.0,0.10431915]
[1730984573950,0.13224102,75000.0,74992.0,0.0794]
[1730984576776,0.023,75005.0,74994.0,0.0756]
[1730984576997,0.15524102,75006.0,74998.0,0.1228]
[1730984581628,0.13224102,75005.0,74998.0,0.1228]
[1730984582089,0.023,75004.0,74998.0,0.1228]
[1730984582306,0.023,75002.0,74998.0,0.1228]
[1730984582546,0.13224102,75001.0,74998.0,0.1228]
[1730984583054,0.023,74998.0,74993.0,0.0777]
[1730984583279,0.023,74996.0,74989.0,0.0475067]
[1730984583498,0.13224102,74995.0,74989.0,0.0475067]
[1730984583721,0.023,74994.0,74989.0,0.0475067]
[1730984583947,0.023,74992.0,74988.0,0.0777]
[1730984584197,0.023,74990.0,74988.0,0.0777]
[1730984584441,0.15524102,74989.0,74988.0,0.0777]
[1730984584910,0.15524102,74989.0,74987.0,0.000833]
[1730984584911,0.023,74988.0,74987.0,0.000833]
[1730984585148,0.15524102,74988.0,74987.0,0.000833]
[1730984587974,0.13224102,74988.0,74987.0,0.000833]
[1730984588904,0.13224102,74988.0,74987.0,0.128533]
[1730984589168,0.20032051,74997.0,74990.0,0.0796]
[1730984589412,0.20032051,74997.0,74991.0,0.0003067]
[1730984589645,0.20032051,74997.0,74993.0,0.0496]
[1730984589895,0.6963,74998.0,74997.0,0.0003067]
[1730984590156,0.20198651,75007.0,74998.0,0.0826067]
[1730984590384,0.13224102,75006.0,74998.0,0.0826067]
[1730984591980,0.023,75005.0,74998.0,0.0826067]
[1730984592206,0.023,75003.0,74998.0,0.0826067]
[1730984592420,0.13224102,75003.0,74998.0,0.0826067]
[1730984595879,0.13224102,75003.0,74998.0,0.0834397]
[1730984598008,0.001666,75007.0,75005.0,0.1261]
[1730984598277,0.001666,75007.0,75006.0,0.0796067]
[1730984598510,0.001666,75007.0,75006.0,0.1264067]
[1730984599226,0.001666,75007.0,75006.0,0.12907302]
[1730984599443,0.001666,75007.0,75006.0,0.1414067]
[1730984600382,0.001666,75012.0,75011.0,0.0153067]
[1730984600616,0.000755,75022.0,75011.0,0.0153067]
[1730984600617,0.000755,75022.0,75021.0,0.0053067]
[1730984600900,0.000755,75022.0,75021.0,0.27851321]
[1730984602284,0.000755,75022.0,75021.0,0.37851321]
[1730984602468,0.000755,75022.0,75021.0,0.37384772]
[1730984602729,0.000755,75022.0,75021.0,0.42668321]
[1730984604117,0.000755,75022.0,75021.0,0.42868321]
[1730984606302,0.20032051,75034.0,75028.0,0.0173067]
[1730984606518,0.20032051,75034.0,75028.0,0.2641164]
[1730984606741,0.20032051,75034.0,75028.0,0.39435742]
[1730984606951,0.20032051,75034.0,75028.0,0.39635742]
[1730984607375,0.000755,75035.0,75028.0,0.39635742]
[1730984607597,0.000755,75035.0,75028.0,0.39435742]
[1730984607813,0.000755,75035.0,75028.0,0.2621164]
[1730984608031,0.000755,75035.0,75028.0,0.1379087]
[1730984608246,0.000755,75035.0,75028.0,0.1281067]
[1730984608486,0.000755,75035.0,75028.0,0.1379087]
[1730984609366,0.000755,75035.0,75028.0,0.1329087]
[1730984609571,0.000755,75035.0,75028.0,0.1281067]
[1730984609788,0.000755,75035.0,75028.0,0.1231067]
[1730984610009,0.000755,75035.0,75028.0,0.13544812]
[1730984610670,0.000755,75035.0,75028.0,0.15519461]
[1730984610883,0.000198,75034.0,75028.0,0.15519461]
[1730984612114,0.000198,75034.0,75028.0,0.13544812]
[1730984612314,0.000198,75030.0,75028.0,0.08864812]
[1730984614261,0.000198,75030.0,75028.0,0.01264812]
[1730984614955,0.001864,75029.0,75028.0,0.01264812]
[1730984619973,0.001864,75029.0,75028.0,0.01431212]
[1730984620405,0.001666,75029.0,75028.0,0.01431212]
[1730984620828,0.001666,75029.0,75028.0,0.09701212]
[1730984621045,0.001864,75029.0,75028.0,0.09701212]
[1730984623105,0.001666,75029.0,75028.0,0.09701212]
[1730984623739,0.001666,75029.0,75028.0,0.28358924]
[1730984623969,0.001666,75029.0,75028.0,0.51583026]
[1730984624200,0.001666,75029.0,75028.0,0.51316484]
[1730984624408,0.000755,75035.0,75034.0,0.0053067]
[1730984624620,0.000755,75035.0,75034.0,0.14124812]
[1730984624839,0.20032051,75043.0,75034.0,0.14124812]
[1730984625051,0.20032051,75043.0,75034.0,0.14129628]
[1730984625265,0.20032051,75043.0,75035.0,0.01238958]
[1730984625469,0.20032051,75043.0,75036.0,0.01238958]
[1730984625677,0.20032051,75043.0,75037.0,0.01238958]
[1730984625886,0.000198,75049.0,75038.0,0.01238958]
[1730984626093,0.000198,75049.0,75048.0,0.0003067]
[1730984626297,0.000198,75049.0,75048.0,0.01269628]
[1730984627327,0.000198,75049.0,75048.0,0.01270777]
[1730984629469,0.27610045,75049.0,75048.0,0.01240107]
[1730984629679,0.23483902,75049.0,75048.0,0.01240107]
[1730984629890,1.73483902,75049.0,75048.0,0.01240107]
[1730984630330,0.23983902,75049.0,75048.0,0.01240107]
[1730984632072,0.24183902,75049.0,75048.0,0.01240107]
[1730984632280,0.35236432,75049.0,75048.0,0.01240107]
[1730984632487,0.000198,75036.0,75035.0,0.001664]
[1730984632713,0.15543902,75036.0,75035.0,0.01409112]
[1730984636948,0.15543902,75036.0,75035.0,0.03896067]
[1730984639683,0.15543902,75036.0,75035.0,0.02653417]
[1730984639886,0.15543902,75036.0,75035.0,0.06383912]
[1730984643630,0.15543902,75036.0,75035.0,0.03896895]
[1730984644764,0.15543902,75036.0,75035.0,0.01409898]
[1730984645944,0.15543902,75036.0,75035.0,0.001664]
[1730984646196,0.15543902,75036.0,75035.0,0.01409778]
[1730984649565,0.15543902,75036.0,75035.0,0.01409546]
[1730984652469,0.15543902,75036.0,75035.0,0.09509546]
[1730984653336,0.15543902,75036.0,75035.0,0.082664]
[1730984653999,0.15543902,75036.0,75035.0,0.001664]
[1730984655603,0.15543902,75036.0,75035.0,0.01409489]
[1730984655814,0.15543902,75036.0,75035.0,0.001664]
[1730984657829,0.15543902,75036.0,75035.0,0.01410422]
[1730984658703,0.15543902,75036.0,75035.0,0.001664]
[1730984663058,0.16792303,75036.0,75035.0,0.001664]
[1730984664014,0.34712303,75036.0,75035.0,0.001664]
[1730984664227,0.3939825,75036.0,75035.0,0.001664]
[1730984664455,0.35412303,75036.0,75035.0,0.001664]
[1730984664696,0.35212303,75036.0,75035.0,0.001664]
[1730984665816,0.26792303,75036.0,75035.0,0.001664]
[1730984666247,0.30778045,75036.0,75035.0,0.001664]
[1730984667645,0.31277591,75036.0,75035.0,0.001664]
[1730984668314,0.27292303,75036.0,75035.0,0.001664]
[1730984668535,0.3127732,75036.0,75035.0,0.001664]
[1730984669013,0.4200147,75036.0,75035.0,0.001664]
[1730984669228,0.33468649,75036.0,75035.0,0.001664]
[1730984669449,0.39097476,75036.0,75035.0,0.001664]
[1730984669673,0.69166458,75036.0,75035.0,0.001664]
[1730984669888,0.67968212,75036.0,75035.0,0.001664]
[1730984670106,0.73524535,75036.0,75035.0,0.001664]
[1730984670332,0.83185863,75036.0,75035.0,0.001664]
[1730984670569,0.70658963,75036.0,75035.0,0.001664]
[1730984671023,0.86948812,75036.0,75035.0,0.001664]
[1730984671484,0.74321912,75036.0,75035.0,0.001664]
[1730984671960,0.73821912,75036.0,75035.0,0.001664]
[1730984672194,0.73274663,75036.0,75035.0,0.001664]
[1730984672438,0.74520905,75036.0,75035.0,0.001664]
[1730984672681,0.73820905,75036.0,75035.0,0.001664]
[1730984672917,0.60896628,75036.0,75035.0,0.001664]
[1730984673145,1.29326628,75036.0,75035.0,0.001664]
[1730984673372,1.24666628,75036.0,75035.0,0.001664]
[1730984673589,1.21708551,75036.0,75035.0,0.001664]
[1730984673819,1.13298551,75036.0,75035.0,0.001664]
[1730984674035,1.12298551,75036.0,75035.0,0.001664]
[1730984674246,1.13498551,75036.0,75035.0,0.001664]
[1730984674467,1.13998551,75036.0,75035.0,0.001664]
[1730984675831,1.12752309,75036.0,75035.0,0.001664]
[1730984676093,1.13997812,75036.0,75035.0,0.001664]
[1730984676327,1.13497812,75036.0,75035.0,0.001664]
[1730984676545,1.12997812,75036.0,75035.0,0.001664]
[1730984676980,1.12528482,75036.0,75035.0,0.001664]
[1730984677193,1.20979584,75036.0,75035.0,0.001664]
[1730984677415,0.87819405,75036.0,75035.0,0.078964]
[1730984677641,0.86573902,75036.0,75035.0,0.078964]
[1730984678292,0.85873902,75036.0,75035.0,0.078964]
[1730984678983,0.16243902,75036.0,75035.0,0.078964]
[1730984679448,0.15543902,75036.0,75035.0,0.078964]
[1730984680549,0.000198,75036.0,75035.0,0.14694775]
[1730984682949,0.000198,75036.0,75035.0,0.127064]
[1730984683243,0.000198,75036.0,75035.0,0.14694616]
[1730984684767,0.15543902,75036.0,75035.0,0.127064]
[1730984684993,0.25543902,75036.0,75035.0,0.001664]
[1730984685202,0.41506107,75036.0,75035.0,0.001664]
[1730984686053,0.47029442,75036.0,75035.0,0.001664]
[1730984686507,0.47029494,75036.0,75035.0,0.001664]
[1730984687998,0.32312832,75036.0,75035.0,0.001664]
[1730984688663,0.5550275,75036.0,75035.0,0.001664]
[1730984688893,0.47529354,75036.0,75035.0,0.001664]
[1730984689742,0.61048684,75036.0,75035.0,0.001664]
[1730984689916,0.61049035,75036.0,75035.0,0.001664]
[1730984690801,1.30679035,75036.0,75035.0,0.001664]
[1730984691011,1.30479035,75036.0,75035.0,0.001664]
[1730984691245,1.03412513,75036.0,75035.0,0.001664]
[1730984691882,1.03512513,75036.0,75035.0,0.001664]
[1730984692097,1.03612513,75036.0,75035.0,0.001664]
[1730984692943,1.21213986,75036.0,75035.0,0.001664]
[1730984693156,1.38275703,75036.0,75035.0,0.001664]
[1730984693387,1.41613855,75036.0,75035.0,0.001664]
[1730984693603,1.41613998,75036.0,75035.0,0.001664]
[1730984693812,1.45766545,75036.0,75035.0,0.001664]
[1730984694913,1.24012525,75036.0,75035.0,0.001664]
[1730984695122,1.37339425,75036.0,75035.0,0.001664]
[1730984695747,1.53419945,75036.0,75035.0,0.001664]
[1730984695958,0.2731723,75029.0,75028.0,0.001664]
[1730984696176,0.000198,75012.0,75009.0,0.0811]
[1730984696381,0.13243902,75012.0,75009.0,0.0811]
[1730984696602,0.000198,75010.0,75009.0,0.0811]
[1730984696816,0.15543902,75010.0,75009.0,0.0811]
[1730984697248,0.15543902,75010.0,75005.0,0.0476]
[1730984697249,0.000198,75006.0,75005.0,0.0476]
[1730984697454,0.15543902,75006.0,75005.0,0.0476]
[1730984698566,0.023198,75005.0,75004.0,0.0812]
[1730984698800,0.000198,75000.0,74999.0,0.10239589]
[1730984699027,0.13243902,75000.0,74999.0,0.0825]
[1730984699251,0.15543902,75000.0,74999.0,0.0825]
[1730984700938,0.023198,74999.0,74998.0,0.000833]
[1730984701160,0.15543902,74999.0,74998.0,0.000833]
[1730984702993,0.26043902,74999.0,74998.0,0.000833]
[1730984703207,0.27013232,74999.0,74998.0,0.000833]
[1730984704936,0.39414202,74999.0,74998.0,0.000833]
[1730984705600,1.09044202,74999.0,74998.0,0.000833]
[1730984706032,1.09444202,74999.0,74998.0,0.000833]
[1730984706284,1.36201979,74999.0,74998.0,0.000833]
[1730984706530,1.22468479,74999.0,74998.0,0.000833]
[1730984706749,1.22568479,74999.0,74998.0,0.000833]
[1730984707182,1.36101979,74999.0,74998.0,0.000833]
[1730984707413,1.72126755,74999.0,74998.0,0.000833]
[1730984707592,1.72126755,74999.0,74974.0,7.3e-05]
[1730984707593,0.261901,74988.0,74980.0,0.20032051]
[1730984707829,1.09044202,74988.0,74980.0,0.20032051]
[1730984708040,1.09044202,74988.0,74974.0,7.3e-05]
[1730984709349,1.09244202,74988.0,74974.0,7.3e-05]
[1730984709788,1.09224402,74988.0,74974.0,7.3e-05]
[1730984713023,1.12562554,74988.0,74987.0,0.000833]
[1730984713688,1.15540056,74988.0,74987.0,0.000833]
[1730984714408,1.15740056,74988.0,74987.0,0.000833]
[1730984714854,1.15540056,74988.0,74987.0,0.000833]
[1730984715062,1.16073556,74988.0,74987.0,0.000833]
[1730984715936,1.21558946,74988.0,74987.0,0.000833]
[1730984716152,1.25688737,74988.0,74987.0,0.000833]
[1730984716363,1.25888737,74988.0,74987.0,0.000833]
[1730984718302,1.39224137,74988.0,74987.0,0.000833]
[1730984718513,1.4330236,74988.0,74987.0,0.000833]
[1730984718694,1.5121236,74988.0,74987.0,0.000833]
[1730984718954,3.0577236,74988.0,74987.0,0.000833]
[1730984719414,3.01694137,74988.0,74987.0,0.000833]
[1730984721825,3.01160637,74988.0,74987.0,0.000833]
[1730984722040,1.51160637,74988.0,74987.0,0.000833]
[1730984722419,1.51694237,74988.0,74987.0,0.000833]
[1730984723883,0.5190887,74976.0,74975.0,0.000832]
[1730984724104,0.65332972,74976.0,74975.0,0.000832]
[1730984724519,0.68671124,74976.0,74975.0,0.000832]
[1730984724933,0.55333524,74976.0,74975.0,0.000832]
[1730984725139,0.68471124,74976.0,74975.0,0.000832]
[1730984725356,0.43232554,74976.0,74975.0,0.000832]
[1730984725565,0.4850704,74976.0,74975.0,0.000832]
[1730984725984,0.4870704,74976.0,74975.0,0.000832]
[1730984726655,0.6204464,74976.0,74975.0,0.000832]
[1730984726863,0.6110801,74976.0,74975.0,0.000832]
[1730984727075,0.87817945,74976.0,74975.0,0.000832]
[1730984727504,0.2730703,74975.0,74974.0,7.3e-05]
[1730984727719,0.40531132,74975.0,74974.0,7.3e-05]
[1730984727957,0.43869284,74975.0,74974.0,7.3e-05]
[1730984728171,1.13499284,74975.0,74974.0,7.3e-05]
[1730984728384,1.14743224,74975.0,74974.0,7.3e-05]
[1730984728825,1.19273015,74975.0,74974.0,7.3e-05]
[1730984729143,1.19473015,74975.0,74974.0,7.3e-05]
[1730984729364,1.15143224,74975.0,74974.0,7.3e-05]
[1730984730232,1.01805524,74975.0,74974.0,7.3e-05]
[1730984730659,1.15143224,74975.0,74974.0,7.3e-05]
[1730984731288,1.13899284,74975.0,74974.0,7.3e-05]
[1730984732146,1.27123561,74975.0,74974.0,7.3e-05]
[1730984732583,1.31269084,74975.0,74974.0,7.3e-05]
[1730984732792,1.17931384,74975.0,74974.0,7.3e-05]
[1730984733284,1.31269084,74975.0,74974.0,7.3e-05]
[1730984733504,1.17931384,74975.0,74974.0,7.3e-05]
[1730984733731,1.31269084,74975.0,74974.0,7.3e-05]
[1730984734195,1.17931384,74975.0,74974.0,7.3e-05]
[1730984734420,1.18044807,74975.0,74974.0,7.3e-05]
[1730984735731,1.04707107,74975.0,74974.0,7.3e-05]